fUSD/lending_fUSD_20240518
["ID","MTS","AMOUNT","RATE_DAILY","PERIOD"]
[327429616,1716072662196,-1506.69,0.00027671,2]
[327429617,1716072662205,-151.0,0.00027671,7]
[327429618,1716072662214,-151.0,0.00027671,7]
[327429619,1716072662223,-1061.27,0.00027671,2]
[327429620,1716072662232,-3490.29,0.00027671,2]
[327429621,1716072662241,-151.0,0.00027671,7]
[327429622,1716072662249,-151.0,0.00027671,7]
[327429623,1716072662258,-500.0,0.00027671,2]
[327429624,1716072662267,-500.0,0.00027671,2]
[327429625,1716072662276,-728.73,0.00027671,2]
[327429626,1716072662286,-500.0,0.00027671,2]
[327429627,1716072662295,-649.73,0.00027671,2]
[327429628,1716072662303,-500.0,0.00027671,2]
[327429629,1716072662313,-500.0,0.00027671,2]
[327429630,1716072662323,-151.0,0.00027671,7]
[327429631,1716072662331,-1121.22,0.00027671,2]
[327429632,1716072662340,-151.0,0.00027671,7]
[327429633,1716072662349,-965.84,0.00027671,2]
[327429634,1716072662359,-500.0,0.00027671,2]
[327429635,1716072662368,-962.75,0.00027671,2]
[327429636,1716072662377,-500.0,0.00027671,2]
[327429637,1716072662386,-151.0,0.00027671,7]
[327429638,1716072662395,-151.0,0.00027671,7]
[327429639,1716072662410,-1517.22,0.00027671,2]
[327429640,1716072662420,-607.13,0.00027671,2]
[327429641,1716072662428,-500.0,0.00027671,2]
[327429642,1716072662438,-777.39,0.00027671,2]
[327429643,1716072662449,-151.0,0.00027671,7]
[327429644,1716072662458,-1646.21,0.00027671,2]
[327429645,1716072662467,-1072.65,0.00027671,2]
[327429646,1716072662478,-151.0,0.00027671,7]
[327429647,1716072662487,-522.66,0.00027671,2]
[327429648,1716072662496,-500.0,0.00027671,2]
[327429649,1716072662505,-500.0,0.00027671,2]
[327429650,1716072662514,-500.0,0.00027671,2]
[327429651,1716072662523,-500.0,0.00027671,2]
[327429652,1716072662532,-2342.49,0.00027671,2]
[327429653,1716072662542,-151.0,0.00027671,7]
[327429654,1716072662551,-151.0,0.00027671,7]
[327429655,1716072662560,-533.33921284,0.00027671,2]
[327429656,1716072662569,-718.79,0.00027671,2]
[327429657,1716072662578,-500.0,0.00027671,2]
[327429658,1716072662587,-151.0,0.00027671,7]
[327429659,1716072662597,-936.43,0.00027671,2]
[327429660,1716072662606,-151.0,0.00027671,7]
[327429661,1716072662614,-677.05,0.00027671,2]
[327429662,1716072662623,-500.0,0.00027671,2]
[327429663,1716072662633,-7836.42,0.00027671,2]
[327429664,1716072662641,-500.0,0.00027671,2]
[327429665,1716072662651,-1119.09,0.00027671,2]
[327429666,1716072662660,-500.0,0.00027671,2]
[327429667,1716072662669,-500.0,0.00027671,2]
[327429668,1716072662678,-500.0,0.00027671,2]
[327429669,1716072662687,-500.0,0.00027671,2]
[327429670,1716072662695,-500.0,0.00027671,2]
[327429671,1716072662704,-151.0,0.00027671,7]
[327429672,1716072662713,-500.0,0.00027671,2]
[327429673,1716072662722,-151.0,0.00027671,7]
[327429674,1716072662730,-500.0,0.00027671,2]
[327429675,1716072662739,-500.0,0.00027671,2]
[327429676,1716072662748,-500.0,0.00027671,2]
[327429677,1716072662757,-747.33,0.00027671,2]
[327429678,1716072662766,-899.97,0.00027671,2]
[327429679,1716072662775,-500.0,0.00027671,2]
[327429680,1716072662784,-151.0,0.00027671,7]
[327429681,1716072662793,-151.0,0.00027671,7]
[327429682,1716072662802,-500.0,0.00027671,2]
[327429683,1716072662812,-500.0,0.00027671,2]
[327429684,1716072662828,-958.2,0.00027671,2]
[327429685,1716072662850,-903.76,0.00027671,2]
[327429686,1716072662868,-500.0,0.00027671,2]
[327429687,1716072662887,-500.0,0.00027671,2]
[327429688,1716072662909,-814.37,0.00027671,2]
[327429689,1716072662926,-500.0,0.00027671,2]
[327429690,1716072662944,-804.91,0.00027671,2]
[327429691,1716072662957,-500.0,0.00027671,2]
[327429692,1716072662972,-5840.53,0.00027671,2]
[327429693,1716072662990,-546.54,0.00027671,2]
[327429694,1716072663010,-944.57,0.00027671,2]
[327429695,1716072663022,-567.91,0.00027671,2]
[327429696,1716072663038,-500.0,0.00027671,2]
[327429697,1716072663053,-500.0,0.00027671,2]
[327429698,1716072663071,-500.0,0.00027671,2]
[327429699,1716072663083,-500.0,0.00027671,2]
[327429700,1716072663099,-8080.33,0.00027671,2]
[327429701,1716072663115,-500.0,0.00027671,2]
[327429702,1716072663130,-514.52,0.00027671,2]
[327429703,1716072663144,-1436.74,0.00027671,2]
[327429704,1716072663159,-966.71,0.00027671,2]
[327429705,1716072663174,-500.0,0.00027671,2]
[327429706,1716072663189,-617.57,0.00027671,2]
[327429707,1716072663203,-859.01,0.00027671,2]
[327429708,1716072663217,-598.86,0.00027671,2]
[327429709,1716072663232,-4199.51,0.00027671,2]
[327429710,1716072663247,-757.33,0.00027671,2]
[327429711,1716072663263,-222.306964,0.00027671,7]
[327429712,1716072663278,-151.0,0.00027671,7]
[327429713,1716072663292,-222.306964,0.00027671,7]
[327429714,1716072663307,-152.827274,0.00027671,7]
[327429715,1716072663322,-2709.04,0.00027671,2]
[327429716,1716072663337,-845.88,0.00027671,2]
[327429717,1716072663352,-4393.59,0.00027671,2]
[327429718,1716072663366,-1202.17,0.00027671,2]
[327429719,1716072663382,-500.0,0.00027671,2]
[327429720,1716072663395,-222.306964,0.00027671,7]
[327429721,1716072663415,-830.64,0.00027671,2]
[327429722,1716072663429,-222.306964,0.00027671,7]
[327429723,1716072663448,-791.26,0.00027671,2]
[327429724,1716072663462,-500.0,0.00027671,2]
[327429725,1716072663477,-1031.41,0.00027671,2]
[327429726,1716072663494,-914.71,0.00027671,2]
[327429727,1716072663508,-500.0,0.00027671,2]
[327429728,1716072663522,-13454.18,0.00027671,2]
[327429729,1716072663536,-312.972067,0.00027671,7]
[327429730,1716072663551,-743.99,0.00027671,2]
[327429731,1716072663566,-312.972067,0.00027671,7]
[327429732,1716072663582,-825.76,0.00027671,2]
[327429733,1716072663596,-4993.36,0.00027671,2]
[327429734,1716072663611,-917.37,0.00027671,2]
[327429735,1716072663626,-539.52128295,0.00027671,2]
[327429736,1716072663640,-312.972067,0.00027671,7]
[327429737,1716072663655,-500.0,0.00027671,2]
[327429738,1716072663670,-1338.01,0.00027671,2]
[327429739,1716072663686,-500.0,0.00027671,2]
[327429740,1716072663701,-312.972067,0.00027671,7]
[327429741,1716072663715,-500.0,0.00027671,2]
[327429742,1716072663730,-500.0,0.00027671,2]
[327429743,1716072663744,-500.0,0.00027671,2]
[327429744,1716072663760,-2348.84,0.00027671,2]
[327429745,1716072663775,-500.0,0.00027671,2]
[327429746,1716072663789,-620.39,0.00027671,2]
[327429747,1716072663803,-787.6,0.00027671,2]
[327429748,1716072663819,-2108.67,0.00027671,2]
[327429749,1716072663833,-151.0,0.00027671,7]
[327429750,1716072663848,-151.0,0.00027671,7]
[327429751,1716072663862,-500.0,0.00027671,2]
[327429752,1716072663877,-594.36,0.00027671,2]
[327429753,1716072663891,-500.0,0.00027671,2]
[327429754,1716072663906,-591.28,0.00027671,2]
[327429755,1716072663920,-1781.93,0.00027671,2]
[327429756,1716072663935,-834.18,0.00027671,2]
[327429757,1716072663949,-500.0,0.00027671,2]
[327429758,1716072663964,-500.0,0.00027671,2]
[327429759,1716072663977,-500.0,0.00027671,2]
[327429760,1716072663992,-1566.6,0.00027671,2]
[327429761,1716072664007,-2211.96,0.00027671,2]
[327429762,1716072664021,-449.613505,0.00027671,7]
[327429763,1716072664036,-449.613505,0.00027671,7]
[327429764,1716072664052,-500.0,0.00027671,2]
[327429765,1716072664067,-525.01,0.00027671,2]
[327429766,1716072664081,-500.0,0.00027671,2]
[327429767,1716072664251,-449.613505,0.00027671,7]
[327429768,1716072664268,-449.613505,0.00027671,7]
[327429769,1716072664277,-775.61,0.00027671,2]
[327429770,1716072664286,-500.0,0.00027671,2]
[327429771,1716072664295,-524.04,0.00027671,2]
[327429772,1716072664305,-500.0,0.00027671,2]
[327429773,1716072664313,-659.23,0.00027671,2]
[327429774,1716072664324,-1439.35,0.00027671,2]
[327429775,1716072664333,-4593.95,0.00027671,2]
[327429776,1716072664342,-660.78,0.00027671,2]
[327429777,1716072664351,-1429.16,0.00027671,2]
[327429778,1716072664361,-553.81,0.00027671,2]
[327429779,1716072664370,-500.0,0.00027671,2]
[327429780,1716072664379,-4440.74,0.00027671,2]
[327429781,1716072664388,-500.0,0.00027671,2]
[327429782,1716072664399,-500.0,0.00027671,2]
[327429783,1716072664412,-500.0,0.00027671,2]
[327429784,1716072664421,-859.19,0.00027671,2]
[327429785,1716072664430,-500.0,0.00027671,2]
[327429786,1716072664439,-500.0,0.00027671,2]
[327429787,1716072664450,-500.0,0.00027671,2]
[327429788,1716072664459,-500.0,0.00027671,2]
[327429789,1716072664468,-987.39,0.00027671,2]
[327429790,1716072664477,-500.0,0.00027671,2]
[327429791,1716072664489,-500.0,0.00027671,2]
[327429792,1716072664498,-2255.19,0.00027671,2]
[327429793,1716072664508,-519.70894642,0.00027671,2]
[327429794,1716072664517,-500.0,0.00027671,2]
[327429795,1716072664526,-1264.56,0.00027671,2]
[327429796,1716072664535,-500.0,0.00027671,2]
[327429797,1716072664544,-1385.24,0.00027671,2]
[327429798,1716072664554,-441.992191,0.00027671,7]
[327429799,1716072664563,-611.43,0.00027671,2]
[327429800,1716072664572,-441.992191,0.00027671,7]
[327429801,1716072664582,-1221.01,0.00027671,2]
[327429802,1716072664591,-500.0,0.00027671,2]
[327429803,1716072664600,-2088.5,0.00027671,2]
[327429804,1716072664610,-1484.57,0.00027671,2]
[327429805,1716072664619,-695.302793,0.00027671,7]
[327429806,1716072664628,-500.0,0.00027671,2]
[327429807,1716072664637,-695.302793,0.00027671,7]
[327429808,1716072664646,-441.992191,0.00027671,7]
[327429809,1716072664656,-441.992191,0.00027671,7]
[327429810,1716072664665,-151.0,0.00027671,7]
[327429811,1716072664674,-151.0,0.00027671,7]
[327429812,1716072664683,-695.302793,0.00027671,7]
[327429813,1716072664692,-695.302793,0.00027671,7]
[327429814,1716072664701,-500.0,0.00027671,2]
[327429815,1716072664711,-500.0,0.00027671,2]
[327429816,1716072664720,-500.0,0.00027671,2]
[327429817,1716072664730,-500.0,0.00027671,2]
[327429818,1716072664739,-151.0,0.00027671,7]
[327429819,1716072664748,-500.0,0.00027671,2]
[327429820,1716072664757,-500.0,0.00027671,2]
[327429821,1716072664768,-151.0,0.00027671,7]
[327429822,1716072664777,-500.0,0.00027671,2]
[327429823,1716072664786,-500.0,0.00027671,2]
[327429824,1716072664795,-500.0,0.00027671,2]
[327429825,1716072664804,-1786.52,0.00027671,2]
[327429826,1716072664814,-500.0,0.00027671,2]
[327429827,1716072664824,-151.0,0.00027671,7]
[327429828,1716072664833,-151.0,0.00027671,7]
[327429829,1716072664842,-7643.34,0.00027671,2]
[327429830,1716072664851,-865.89,0.00027671,2]
[327429831,1716072664860,-500.0,0.00027671,2]
[327429832,1716072664869,-151.0,0.00027671,7]
[327429833,1716072664878,-151.0,0.00027671,7]
[327429834,1716072664888,-500.0,0.00027671,2]
[327429835,1716072664897,-195.42294972,0.00027671,2]
[327429836,1716072664906,-5681.26,0.00027671,2]
[327429837,1716072664915,-500.0,0.00027671,2]
[327429838,1716072664924,-834.34,0.00027671,2]
[327429839,1716072664933,-569.88,0.00027671,2]
[327429840,1716072664942,-500.0,0.00027671,2]
[327429841,1716072664951,-513.16039862,0.00027671,2]
[327429842,1716072664960,-500.0,0.00027671,2]
[327429843,1716072664970,-500.0,0.00027671,2]
[327429844,1716072664978,-184.746498,0.00027671,7]
[327429845,1716072664988,-184.746498,0.00027671,7]
[327429846,1716072664997,-500.0,0.00027671,2]
[327429847,1716072665006,-500.0,0.00027671,2]
[327429848,1716072665015,-762.15,0.00027671,2]
[327429849,1716072665024,-500.0,0.00027671,2]
[327429850,1716072665034,-500.0,0.00027671,2]
[327429851,1716072665043,-555.28,0.00027671,2]
[327429852,1716072665052,-500.0,0.00027671,2]
[327429853,1716072665061,-500.0,0.00027671,2]
[327429854,1716072665070,-184.746498,0.00027671,7]
[327429855,1716072665079,-184.746498,0.00027671,7]
[327429856,1716072665089,-500.0,0.00027671,2]
[327429857,1716072665098,-500.0,0.00027671,2]
[327429858,1716072665107,-1179.45,0.00027671,2]
[327429859,1716072665118,-151.0,0.00027671,7]
[327429860,1716072665128,-151.0,0.00027671,7]
[327429861,1716072665138,-500.0,0.00027671,2]
[327429862,1716072665147,-151.0,0.00027671,7]
[327429863,1716072665157,-151.0,0.00027671,7]
[327429864,1716072665166,-500.0,0.00027671,2]
[327429865,1716072665176,-500.0,0.00027671,2]
[327429866,1716072665185,-855.04,0.00027671,2]
[327429867,1716072665194,-500.0,0.00027671,2]
[327429868,1716072665204,-1063.61,0.00027671,2]
[327429869,1716072665213,-500.0,0.00027671,2]
[327429870,1716072665222,-500.0,0.00027671,2]
[327429871,1716072665231,-500.0,0.00027671,2]
[327429872,1716072665240,-654.27,0.00027671,2]
[327429873,1716072665250,-734.04,0.00027671,2]
[327429874,1716072665259,-500.0,0.00027671,2]
[327429875,1716072665269,-500.0,0.00027671,2]
[327429876,1716072665278,-151.0,0.00027671,7]
[327429877,1716072665287,-151.0,0.00027671,7]
[327429878,1716072665296,-999.31,0.00027671,2]
[327429879,1716072665306,-616.27,0.00027671,2]
[327429880,1716072665317,-151.0,0.00027671,7]
[327429881,1716072665327,-668.19,0.00027671,2]
[327429882,1716072665336,-151.0,0.00027671,7]
[327429883,1716072665346,-500.0,0.00027671,2]
[327429884,1716072665354,-2612.48,0.00027671,2]
[327429885,1716072665364,-948.02,0.00027671,2]
[327429886,1716072665373,-500.0,0.00027671,2]
[327429887,1716072665382,-500.0,0.00027671,2]
[327429888,1716072665391,-500.0,0.00027671,2]
[327429889,1716072665402,-969.95,0.00027671,2]
[327429890,1716072665413,-874.06,0.00027671,2]
[327429891,1716072665422,-515.87,0.00027671,2]
[327429892,1716072665432,-1449.83,0.00027671,2]
[327429893,1716072665441,-897.1,0.00027671,2]
[327429894,1716072665451,-500.0,0.00027671,2]
[327429895,1716072665460,-500.0,0.00027671,2]
[327429896,1716072665469,-500.0,0.00027671,2]
[327429897,1716072665479,-3443.361454,0.00027671,7]
[327429898,1716072665490,-3443.361454,0.00027671,7]
[327429899,1716072665499,-150.0,0.00027671,2]
[327429900,1716072665509,-150.0,0.00027671,2]
[327429901,1716072665518,-150.0,0.00027671,2]
[327429902,1716072665527,-1612.56726,0.0002769,2]
[327429903,1716072665538,-500.0,0.00027708,2]
[327429904,1716072665547,-209.0,0.0002771,2]
[327429905,1716072665556,-277.0,0.0002771,2]
[327429906,1716072665565,-157.051907,0.00027748,20]
[327429907,1716072665576,-150.0,0.00027841,2]
[327429908,1716072665584,-228.94813482,0.00027851,2]
[327429909,1716072665594,-150.0,0.00027869,2]
[327429910,1716072665603,-150.0,0.00027882,2]
[327429911,1716072665612,-150.0,0.00027885,2]
[327429912,1716072665621,-150.0,0.00027888,2]
[327429913,1716072665630,-150.0,0.0002789,2]
[327429914,1716072665639,-150.0,0.00027891,2]
[327429915,1716072665649,-150.0,0.00027901,2]
[327429916,1716072665658,-150.0,0.00027907,2]
[327429917,1716072665667,-162.05481209,0.00027907,2]
[327429918,1716072665676,-692.8,0.00027918,7]
[327429919,1716072665686,-150.0,0.0002792,2]
[327429920,1716072665695,-150.0,0.00027931,2]
[327429921,1716072665704,-150.0,0.00027932,2]
[327429922,1716072665714,-150.0,0.00027933,2]
[327429923,1716072665723,-150.0,0.00027934,2]
[327429924,1716072665733,-150.0,0.00027935,2]
[327429925,1716072665742,-150.0,0.00027941,2]
[327429926,1716072665751,-15570.07806602,0.00027944,2]
[327429927,1716072665760,-790.53548,0.00027944,7]
[327429928,1716072665770,-790.53548,0.00027944,7]
[327429929,1716072665780,-151.0,0.00027944,7]
[327429930,1716072665789,-151.0,0.00027944,7]
[327429931,1716072665799,-151.0,0.00027944,7]
[327429932,1716072665808,-318.462247,0.00027944,7]
[327429933,1716072665817,-151.0,0.00027944,7]
[327429934,1716072665827,-318.462247,0.00027944,7]
[327429935,1716072665838,-479.10940715,0.00027945,2]
[327429936,1716072665847,-516.85535361,0.00027945,2]
[327429937,1716072665856,-500.0,0.00027945,2]
[327429938,1716072665865,-854.48,0.00027945,2]
[327429939,1716072665875,-500.0,0.00027945,2]
[327429940,1716072665884,-500.0,0.00027945,2]
[327429941,1716072665893,-537.45255892,0.00027945,2]
[327429942,1716072665902,-500.0,0.00027945,2]
[327429943,1716072665912,-196.86196358,0.00027945,2]
[327429944,1716072665920,-722.84,0.00027945,2]
[327429945,1716072665930,-500.0,0.00027945,2]
[327429946,1716072665939,-500.0,0.00027945,2]
[327429947,1716072665948,-500.0,0.00027945,2]
[327429948,1716072665957,-500.0,0.00027945,2]
[327429949,1716072665967,-749.24,0.00027945,2]
[327429950,1716072665976,-550.07,0.00027945,2]
[327429951,1716072665985,-763.94,0.00027945,2]
[327429952,1716072665995,-500.0,0.00027945,2]
[327429953,1716072666004,-500.0,0.00027945,2]
[327429954,1716072666013,-500.0,0.00027945,2]
[327429955,1716072666022,-500.0,0.00027945,2]
[327429956,1716072666032,-931.54,0.00027945,2]
[327429957,1716072666041,-1254.54,0.00027945,2]
[327429958,1716072666051,-500.0,0.00027945,2]
[327429959,1716072666174,-500.0,0.00027945,2]
[327429960,1716072666186,-545.32,0.00027945,2]
[327429961,1716072666196,-500.0,0.00027945,2]
[327429962,1716072666205,-500.0,0.00027945,2]
[327429963,1716072666215,-500.0,0.00027945,2]
[327429964,1716072666224,-500.0,0.00027945,2]
[327429965,1716072666233,-500.0,0.00027945,2]
[327429966,1716072666243,-500.0,0.00027945,2]
[327429967,1716072666253,-500.0,0.00027945,2]
[327429968,1716072666262,-500.0,0.00027945,2]
[327429969,1716072666271,-500.0,0.00027945,2]
[327429970,1716072666281,-437.87427808,0.00027945,2]
[327429971,1716072666290,-964.74,0.00027945,2]
[327429972,1716072666300,-500.0,0.00027945,2]
[327429973,1716072666309,-528.76173809,0.00027945,2]
[327429974,1716072666319,-1304.69,0.00027945,2]
[327429975,1716072666329,-500.0,0.00027945,2]
[327429976,1716072666338,-1394.33,0.00027945,2]
[327429977,1716072666347,-500.0,0.00027945,2]
[327429978,1716072666356,-500.0,0.00027945,2]
[327429979,1716072666365,-500.0,0.00027945,2]
[327429980,1716072666375,-500.0,0.00027945,2]
[327429981,1716072666384,-1176.76,0.00027945,2]
[327429982,1716072666394,-500.0,0.00027945,2]
[327429983,1716072666407,-500.0,0.00027945,2]
[327429984,1716072666416,-500.0,0.00027945,2]
[327429985,1716072666425,-500.0,0.00027945,2]
[327429986,1716072666434,-500.0,0.00027945,2]
[327429987,1716072666444,-500.0,0.00027945,2]
[327429988,1716072666453,-500.0,0.00027945,2]
[327429989,1716072666462,-500.0,0.00027945,2]
[327429990,1716072666471,-500.0,0.00027945,2]
[327429991,1716072666484,-572.05,0.00027945,2]
[327429992,1716072666494,-500.0,0.00027945,2]
[327429993,1716072666504,-1239.33,0.00027945,2]
[327429994,1716072666513,-661.91,0.00027945,2]
[327429995,1716072666522,-500.0,0.00027945,2]
[327429996,1716072666531,-500.0,0.00027945,2]
[327429997,1716072666540,-500.0,0.00027945,2]
[327429998,1716072666549,-500.0,0.00027945,2]
[327429999,1716072666559,-151.0,0.00027945,7]
[327430000,1716072666568,-500.0,0.00027945,2]
[327430001,1716072666579,-500.0,0.00027945,2]
[327430002,1716072666588,-500.0,0.00027945,2]
[327430003,1716072666597,-500.0,0.00027945,2]
[327430004,1716072666606,-680.23,0.00027945,2]
[327430005,1716072666616,-502.94106843,0.00027945,2]
[327430006,1716072666625,-500.0,0.00027945,2]
[327430007,1716072666635,-500.0,0.00027945,2]
[327430008,1716072666644,-500.0,0.00027945,2]
[327430009,1716072666654,-1000.47,0.00027945,2]
[327430010,1716072666664,-503.38349012,0.00027945,2]
[327430011,1716072666673,-605.84,0.00027945,2]
[327430012,1716072666682,-500.0,0.00027945,2]
[327430013,1716072666692,-500.0,0.00027945,2]
[327430014,1716072666701,-790.21,0.00027945,2]
[327430015,1716072666711,-1223.78,0.00027945,2]
[327430016,1716072666720,-765.58,0.00027945,2]
[327430017,1716072666729,-500.0,0.00027945,2]
[327430018,1716072666738,-1056.08,0.00027945,2]
[327430019,1716072666748,-534.55,0.00027945,2]
[327430020,1716072666757,-678.81,0.00027945,2]
[327430021,1716072666767,-812.38,0.00027945,2]
[327430022,1716072666776,-151.0,0.00027945,7]
[327430023,1716072666785,-582.36,0.00027945,2]
[327430024,1716072666794,-500.0,0.00027945,2]
[327430025,1716072666804,-1653.59,0.00027945,2]
[327430026,1716072666813,-151.0,0.00027945,7]
[327430027,1716072666822,-1175.58,0.00027945,2]
[327430028,1716072666831,-500.0,0.00027945,2]
[327430029,1716072666840,-1017.72,0.00027945,2]
[327430030,1716072666850,-1143.15,0.00027945,2]
[327430031,1716072666860,-500.0,0.00027945,2]
[327430032,1716072666869,-831.82,0.00027945,2]
[327430033,1716072666878,-151.0,0.00027945,7]
[327430034,1716072666887,-802.37,0.00027945,2]
[327430035,1716072666896,-800.26,0.00027945,2]
[327430036,1716072666905,-180.694098,0.00027945,7]
[327430037,1716072666914,-1028.52,0.00027945,2]
[327430038,1716072666924,-500.0,0.00027945,2]
[327430039,1716072666932,-726.12,0.00027945,2]
[327430040,1716072666942,-1012.59,0.00027945,2]
[327430041,1716072666952,-500.0,0.00027945,2]
[327430042,1716072666961,-708.72,0.00027945,2]
[327430043,1716072666971,-984.97,0.00027945,2]
[327430044,1716072666980,-825.63,0.00027945,2]
[327430045,1716072666990,-500.0,0.00027945,2]
[327430046,1716072666999,-500.0,0.00027945,2]
[327430047,1716072667009,-500.0,0.00027945,2]
[327430048,1716072667018,-500.0,0.00027945,2]
[327430049,1716072667027,-500.0,0.00027945,2]
[327430050,1716072667038,-1274.28,0.00027945,2]
[327430051,1716072667048,-500.0,0.00027945,2]
[327430052,1716072667058,-500.0,0.00027945,2]
[327430053,1716072667067,-551.19,0.00027945,2]
[327430054,1716072667079,-500.0,0.00027945,2]
[327430055,1716072667088,-500.0,0.00027945,2]
[327430056,1716072667097,-706.32,0.00027945,2]
[327430057,1716072667107,-500.0,0.00027945,2]
[327430058,1716072667117,-500.0,0.00027945,2]
[327430059,1716072667130,-806.78,0.00027945,2]
[327430060,1716072667139,-1763.56,0.00027945,2]
[327430061,1716072667150,-756.43,0.00027945,2]
[327430062,1716072667159,-151.0,0.00027945,7]
[327430063,1716072667169,-812.94,0.00027945,2]
[327430064,1716072667178,-500.0,0.00027945,2]
[327430065,1716072667188,-500.0,0.00027945,2]
[327430066,1716072667197,-500.0,0.00027945,2]
[327430067,1716072667207,-500.0,0.00027945,2]
[327430068,1716072667216,-152.229865,0.00027945,7]
[327430069,1716072667226,-500.0,0.00027945,2]
[327430070,1716072667235,-500.0,0.00027945,2]
[327430071,1716072667248,-500.0,0.00027945,2]
[327430072,1716072667262,-1640.62,0.00027945,2]
[327430073,1716072667271,-919.67,0.00027945,2]
[327430074,1716072667281,-994.59,0.00027945,2]
[327430075,1716072667290,-500.0,0.00027945,2]
[327430076,1716072667300,-508.72,0.00027945,2]
[327430077,1716072667309,-151.0,0.00027945,7]
[327430078,1716072667318,-1278.05,0.00027945,2]
[327430079,1716072667328,-500.0,0.00027945,2]
[327430080,1716072667337,-500.0,0.00027945,2]
[327430081,1716072667347,-500.0,0.00027945,2]
[327430082,1716072667356,-500.0,0.00027945,2]
[327430083,1716072667365,-500.0,0.00027945,2]
[327430084,1716072667374,-538.29,0.00027945,2]
[327430085,1716072667383,-500.0,0.00027945,2]
[327430086,1716072667393,-500.0,0.00027945,2]
[327430087,1716072667405,-878.16,0.00027945,2]
[327430088,1716072667415,-500.0,0.00027945,2]
[327430089,1716072667425,-1193.14,0.00027945,2]
[327430090,1716072667435,-607.00574324,0.00027945,2]
[327430091,1716072667444,-500.0,0.00027945,2]
[327430092,1716072667454,-500.0,0.00027945,2]
[327430093,1716072667463,-500.0,0.00027945,2]
[327430094,1716072667473,-500.0,0.00027945,2]
[327430095,1716072667482,-511.86,0.00027945,2]
[327430096,1716072667498,-500.0,0.00027945,2]
[327430097,1716072667506,-500.0,0.00027945,2]
[327430098,1716072667516,-629.56,0.00027945,2]
[327430099,1716072667525,-500.0,0.00027945,2]
[327430100,1716072667535,-500.0,0.00027945,2]
[327430101,1716072667544,-500.0,0.00027945,2]
[327430102,1716072667554,-500.0,0.00027945,2]
[327430103,1716072667564,-701.29,0.00027945,2]
[327430104,1716072667573,-500.0,0.00027945,2]
[327430105,1716072667583,-1465.44,0.00027945,2]
[327430106,1716072667592,-500.0,0.00027945,2]
[327430107,1716072667601,-151.0,0.00027945,7]
[327430108,1716072667611,-500.0,0.00027945,2]
[327430109,1716072667620,-737.76,0.00027945,2]
[327430110,1716072667630,-500.0,0.00027945,2]
[327430111,1716072667639,-500.0,0.00027945,2]
[327430112,1716072667649,-500.0,0.00027945,2]
[327430113,1716072667658,-545.55,0.00027945,2]
[327430114,1716072667667,-535.86,0.00027945,2]
[327430115,1716072667677,-664.25,0.00027945,2]